fUST/lending_fUST_20250317
["ID","MTS","AMOUNT","RATE_DAILY","PERIOD"]
[356269708,1742173843343,-500.0,8.767e-05,2]
[356269710,1742173843352,-500.0,8.767e-05,2]
[356269712,1742173843362,-500.0,8.767e-05,2]
[356269715,1742173843381,-500.0,8.767e-05,2]
[356269717,1742173843391,-500.0,8.767e-05,2]
[356269719,1742173843401,-683.62,8.767e-05,2]
[356269721,1742173843411,-500.0,8.767e-05,2]
[356269723,1742173843420,-500.0,8.767e-05,2]
[356269725,1742173843432,-500.0,8.767e-05,2]
[356269727,1742173843443,-500.0,8.767e-05,2]
[356269729,1742173843452,-500.0,8.767e-05,2]
[356269731,1742173843463,-500.0,8.767e-05,2]
[356269733,1742173843474,-500.0,8.767e-05,2]
[356269736,1742173843484,-288.44639379,8.767e-05,2]
[356269738,1742173843494,-500.0,8.767e-05,2]
[356269740,1742173843504,-500.0,8.767e-05,2]
[356269742,1742173843515,-500.0,8.767e-05,2]
[356269744,1742173843525,-507.56381159,8.767e-05,2]
[356269746,1742173843534,-500.0,8.767e-05,2]
[356269748,1742173843544,-500.0,8.767e-05,2]
[356269750,1742173843555,-500.0,8.767e-05,2]
[356269752,1742173843564,-500.0,8.767e-05,2]
[356269754,1742173843574,-500.0,8.767e-05,2]
[356269756,1742173843584,-500.0,8.767e-05,2]
[356269759,1742173843594,-500.0,8.767e-05,2]
[356269761,1742173843604,-500.0,8.767e-05,2]
[356269763,1742173843614,-500.0,8.767e-05,2]
[356269765,1742173843624,-500.0,8.767e-05,2]
[356269767,1742173843634,-500.0,8.767e-05,2]
[356269769,1742173843643,-569.51,8.767e-05,2]
[356269771,1742173843653,-500.0,8.767e-05,2]
[356269773,1742173843663,-500.0,8.767e-05,2]
[356269775,1742173843673,-500.0,8.767e-05,2]
[356269777,1742173843682,-500.0,8.767e-05,2]
[356269779,1742173843692,-500.0,8.767e-05,2]
[356269781,1742173843701,-500.0,8.767e-05,2]
[356269783,1742173843711,-500.0,8.767e-05,2]
[356269785,1742173843721,-500.0,8.767e-05,2]
[356269787,1742173843730,-500.0,8.767e-05,2]
[356269789,1742173843740,-500.0,8.767e-05,2]
[356269791,1742173843749,-500.0,8.767e-05,2]
[356269793,1742173843759,-500.0,8.767e-05,2]
[356269795,1742173843769,-500.0,8.767e-05,2]
[356269797,1742173843779,-1110.24,8.767e-05,2]
[356269799,1742173843788,-500.0,8.767e-05,2]
[356269801,1742173843798,-500.0,8.767e-05,2]
[356269803,1742173843808,-500.0,8.767e-05,2]
[356269804,1742173843817,-500.0,8.767e-05,2]
[356269805,1742173843827,-852.46,8.767e-05,2]
[356269806,1742173843836,-500.0,8.767e-05,2]
[356269807,1742173843845,-500.0,8.767e-05,2]
[356269808,1742173843855,-905.17,8.767e-05,2]
[356269809,1742173843865,-500.0,8.767e-05,2]
[356269810,1742173843874,-500.0,8.767e-05,2]
[356269811,1742173843884,-500.0,8.767e-05,2]
[356269812,1742173843893,-500.0,8.767e-05,2]
[356269813,1742173843903,-500.0,8.767e-05,2]
[356269814,1742173843912,-862.26,8.767e-05,2]
[356269816,1742173843922,-500.0,8.767e-05,2]
[356269818,1742173843932,-500.0,8.767e-05,2]
[356269820,1742173843942,-500.0,8.767e-05,2]
[356269822,1742173843952,-500.0,8.767e-05,2]
[356269824,1742173843962,-500.0,8.767e-05,2]
[356269826,1742173843971,-500.0,8.767e-05,2]
[356269828,1742173843981,-500.0,8.767e-05,2]
[356269830,1742173843990,-500.0,8.767e-05,2]
[356269832,1742173844000,-500.0,8.767e-05,2]
[356269834,1742173844010,-500.0,8.767e-05,2]
[356269836,1742173844019,-500.0,8.767e-05,2]
[356269838,1742173844030,-806.75,8.767e-05,2]
[356269840,1742173844039,-1013.27,8.767e-05,2]
[356269842,1742173844049,-500.0,8.767e-05,2]
[356269844,1742173844059,-500.0,8.767e-05,2]
[356269846,1742173844070,-500.0,8.767e-05,2]
[356269849,1742173844080,-500.0,8.767e-05,2]
[356269851,1742173844089,-14900.38,8.767e-05,2]
[356269853,1742173844099,-500.0,8.767e-05,2]
[356269855,1742173844108,-500.0,8.767e-05,2]
[356269857,1742173844117,-4434.9,8.767e-05,2]
[356269859,1742173844127,-500.0,8.767e-05,2]
[356269861,1742173844136,-500.0,8.767e-05,2]
[356269863,1742173844146,-2742.95,8.767e-05,2]
[356269865,1742173844155,-768.11,8.767e-05,2]
[356269867,1742173844164,-1337.49,8.767e-05,2]
[356269869,1742173844175,-6403.72,8.767e-05,2]
[356269871,1742173844184,-500.0,8.767e-05,2]
[356269873,1742173844196,-500.0,8.767e-05,2]
[356269875,1742173844205,-500.0,8.767e-05,2]
[356269877,1742173844215,-500.0,8.767e-05,2]
[356269879,1742173844224,-500.0,8.767e-05,2]
[356269881,1742173844234,-500.0,8.767e-05,2]
[356269883,1742173844243,-500.0,8.767e-05,2]
[356269885,1742173844253,-500.0,8.767e-05,2]
[356269887,1742173844263,-500.0,8.767e-05,2]
[356269889,1742173844274,-500.0,8.767e-05,2]
[356269891,1742173844284,-500.0,8.767e-05,2]
[356269893,1742173844294,-500.0,8.767e-05,2]
[356269895,1742173844303,-9889.09,8.767e-05,2]
[356269897,1742173844314,-500.0,8.767e-05,2]
[356269899,1742173844324,-500.0,8.767e-05,2]
[356269901,1742173844334,-500.0,8.767e-05,2]
[356269903,1742173844343,-500.0,8.767e-05,2]
[356269905,1742173844352,-500.0,8.767e-05,2]
[356269907,1742173844362,-500.0,8.767e-05,2]
[356269909,1742173844372,-500.0,8.767e-05,2]
[356269911,1742173844382,-894.67,8.767e-05,2]
[356269913,1742173844392,-500.0,8.767e-05,2]
[356269915,1742173844403,-500.0,8.767e-05,2]
[356269917,1742173844413,-9066.85,8.767e-05,2]
[356269919,1742173844423,-500.0,8.767e-05,2]
[356269921,1742173844437,-771.31,8.767e-05,2]
[356269923,1742173844449,-500.0,8.767e-05,2]
[356269925,1742173844459,-500.0,8.767e-05,2]
[356269927,1742173844469,-5044.55,8.767e-05,2]
[356269929,1742173844479,-505.22536463,8.767e-05,2]
[356269932,1742173844489,-1757.86,8.767e-05,2]
[356269934,1742173844499,-2178.8,8.767e-05,2]
[356269935,1742173844509,-3540.62,8.767e-05,2]
[356269938,1742173844519,-6336.38,8.767e-05,2]
[356269939,1742173844528,-6451.65,8.767e-05,2]
[356269941,1742173844538,-6109.39,8.767e-05,2]
[356269944,1742173844548,-500.0,8.767e-05,2]
[356269946,1742173844559,-500.0,8.767e-05,2]
[356269948,1742173844568,-664.02,8.767e-05,2]
[356269949,1742173844579,-500.0,8.767e-05,2]
[356269951,1742173844589,-500.0,8.767e-05,2]
[356269953,1742173844598,-500.0,8.767e-05,2]
[356269956,1742173844608,-500.0,8.767e-05,2]
[356269958,1742173844618,-500.0,8.767e-05,2]
[356269960,1742173844629,-500.0,8.767e-05,2]
[356269962,1742173844639,-564.98,8.767e-05,2]
[356269964,1742173844649,-2769.94,8.767e-05,2]
[356269966,1742173844658,-500.0,8.767e-05,2]
[356269968,1742173844668,-500.0,8.767e-05,2]
[356269970,1742173844678,-500.0,8.767e-05,2]
[356269971,1742173844689,-500.0,8.767e-05,2]
[356269974,1742173844699,-500.0,8.767e-05,2]
[356269976,1742173844709,-500.0,8.767e-05,2]
[356269978,1742173844719,-500.0,8.767e-05,2]
[356269980,1742173844729,-500.0,8.767e-05,2]
[356269981,1742173844738,-500.0,8.767e-05,2]
[356269984,1742173844748,-500.0,8.767e-05,2]
[356269986,1742173844757,-500.0,8.767e-05,2]
[356269988,1742173844767,-2938.17,8.767e-05,2]
[356269990,1742173844777,-500.0,8.767e-05,2]
[356269992,1742173844786,-500.0,8.767e-05,2]
[356269994,1742173844796,-500.0,8.767e-05,2]
[356269996,1742173844806,-2310.01,8.767e-05,2]
[356269998,1742173844815,-9956.06,8.767e-05,2]
[356270000,1742173844825,-500.0,8.767e-05,2]
[356270002,1742173844836,-500.0,8.767e-05,2]
[356270004,1742173844845,-222.53599685,8.767e-05,2]
[356270006,1742173844855,-500.0,8.767e-05,2]
[356270008,1742173844865,-500.0,8.767e-05,2]
[356270010,1742173844875,-500.0,8.767e-05,2]
[356270012,1742173844885,-130537.71,8.767e-05,2]
[356270014,1742173844896,-500.0,8.767e-05,2]
[356270016,1742173844906,-500.0,8.767e-05,2]
[356270018,1742173844915,-500.0,8.767e-05,2]
[356270020,1742173844926,-500.0,8.767e-05,2]
[356270022,1742173844936,-319.1,8.767e-05,2]
[356270024,1742173844946,-500.0,8.767e-05,2]
[356270026,1742173844956,-500.0,8.767e-05,2]
[356270028,1742173844965,-1312.41,8.767e-05,2]
[356270048,1742173845152,-3950.85,8.767e-05,2]
[356270050,1742173845162,-500.0,8.767e-05,2]
[356270052,1742173845172,-500.0,8.767e-05,2]
[356270054,1742173845181,-944.7,8.767e-05,2]
[356270056,1742173845192,-500.0,8.767e-05,2]
[356270058,1742173845202,-763.98,8.767e-05,2]
[356270060,1742173845211,-420.0,8.817e-05,2]
[356270062,1742173845221,-12301.89965908,8.82e-05,4]
[356270064,1742173845231,-353.0,8.873e-05,2]
[356270066,1742173845240,-403.47516316,8.873e-05,2]
[356270068,1742173845250,-500.0,8.973e-05,2]
[356270070,1742173845259,-500.0,8.973e-05,2]
[356270072,1742173845269,-460.69698179,8.973e-05,2]
[356270074,1742173845278,-565.49129904,8.973e-05,2]
[356270076,1742173845289,-10030.0,9e-05,2]
[356270079,1742173845300,-222825.64520888,9e-05,4]
[356270082,1742173845320,-85051.8520926,9e-05,4]
[356270084,1742173845330,-600.0,9e-05,2]
[356270086,1742173845340,-212.0,9e-05,2]
[356270088,1742173845349,-212.0,9e-05,2]
[356270090,1742173845358,-212.0,9e-05,2]
[356270092,1742173845368,-212.0,9e-05,2]
[356270094,1742173845378,-212.0,9e-05,2]
[356270096,1742173845388,-796.5986931,9.022e-05,2]
[356270098,1742173845397,-500.0,9.041e-05,2]
[356270100,1742173845406,-551.02129782,9.041e-05,2]
[356270102,1742173845415,-500.0,9.041e-05,2]
[356270104,1742173845426,-500.0,9.041e-05,2]
[356270105,1742173845439,-500.0,9.041e-05,2]
[356270107,1742173845449,-500.0,9.041e-05,2]
[356270110,1742173845459,-500.0,9.041e-05,2]
[356270112,1742173845468,-500.0,9.041e-05,2]
[356270114,1742173845478,-500.0,9.041e-05,2]
[356270116,1742173845488,-500.0,9.041e-05,2]
[356270118,1742173845497,-500.0,9.041e-05,2]
[356270119,1742173845507,-683.62,9.041e-05,2]
[356270120,1742173845517,-500.0,9.041e-05,2]
[356270121,1742173845526,-500.0,9.041e-05,2]
[356270122,1742173845536,-500.0,9.041e-05,2]
[356270123,1742173845546,-500.0,9.041e-05,2]
[356270124,1742173845555,-500.0,9.041e-05,2]
[356270125,1742173845564,-500.0,9.041e-05,2]
[356270126,1742173845574,-504.39740609,9.041e-05,2]
[356270127,1742173845584,-444.02311574,9.041e-05,2]
[356270128,1742173845593,-500.0,9.041e-05,2]
[356270129,1742173845603,-500.0,9.041e-05,2]
[356270131,1742173845612,-500.0,9.041e-05,2]
[356270133,1742173845622,-500.0,9.041e-05,2]
[356270135,1742173845631,-500.0,9.041e-05,2]
[356270137,1742173845641,-500.0,9.041e-05,2]
[356270139,1742173845652,-595.03988742,9.041e-05,2]
[356270141,1742173845662,-500.0,9.041e-05,2]
[356270143,1742173845671,-500.0,9.041e-05,2]
[356270145,1742173845681,-569.51,9.041e-05,2]
[356270147,1742173845692,-500.0,9.041e-05,2]
[356270149,1742173845701,-500.0,9.041e-05,2]
[356270151,1742173845711,-500.0,9.041e-05,2]
[356270153,1742173845721,-500.0,9.041e-05,2]
[356270155,1742173845730,-500.0,9.041e-05,2]
[356270157,1742173845740,-500.0,9.041e-05,2]
[356270159,1742173845750,-500.0,9.041e-05,2]
[356270161,1742173845760,-500.0,9.041e-05,2]
[356270164,1742173845770,-648.65968312,9.041e-05,2]
[356270166,1742173845780,-500.0,9.041e-05,2]
[356270167,1742173845789,-500.0,9.041e-05,2]
[356270169,1742173845799,-500.0,9.041e-05,2]
[356270171,1742173845808,-500.0,9.041e-05,2]
[356270173,1742173845818,-1110.24,9.041e-05,2]
[356270175,1742173845828,-500.0,9.041e-05,2]
[356270178,1742173845838,-500.0,9.041e-05,2]
[356270180,1742173845848,-500.0,9.041e-05,2]
[356270182,1742173845858,-852.46,9.041e-05,2]
[356270183,1742173845868,-500.0,9.041e-05,2]
[356270186,1742173845877,-905.17,9.041e-05,2]
[356270188,1742173845887,-500.0,9.041e-05,2]
[356270190,1742173845897,-500.0,9.041e-05,2]
[356270192,1742173845907,-500.0,9.041e-05,2]
[356270194,1742173845917,-500.0,9.041e-05,2]
[356270196,1742173845927,-862.26,9.041e-05,2]
[356270198,1742173845940,-500.0,9.041e-05,2]
[356270200,1742173845949,-500.0,9.041e-05,2]
[356270202,1742173845959,-197.25722418,9.041e-05,2]
[356270204,1742173845969,-500.0,9.041e-05,2]
[356270206,1742173845978,-500.0,9.041e-05,2]
[356270207,1742173845988,-500.0,9.041e-05,2]
[356270210,1742173845998,-500.0,9.041e-05,2]
[356270212,1742173846011,-500.0,9.041e-05,2]
[356270214,1742173846021,-500.0,9.041e-05,2]
[356270216,1742173846031,-500.0,9.041e-05,2]
[356270218,1742173846041,-500.0,9.041e-05,2]
[356270220,1742173846050,-806.75,9.041e-05,2]
[356270222,1742173846059,-1013.27,9.041e-05,2]
[356270224,1742173846069,-500.0,9.041e-05,2]
[356270226,1742173846078,-500.0,9.041e-05,2]
[356270228,1742173846088,-500.0,9.041e-05,2]
[356270230,1742173846097,-500.0,9.041e-05,2]
[356270232,1742173846107,-14900.38,9.041e-05,2]
[356270234,1742173846116,-500.0,9.041e-05,2]
[356270236,1742173846126,-500.0,9.041e-05,2]
[356270238,1742173846135,-4434.9,9.041e-05,2]
[356270240,1742173846145,-500.0,9.041e-05,2]
[356270242,1742173846154,-500.0,9.041e-05,2]
[356270244,1742173846164,-2742.95,9.041e-05,2]
[356270246,1742173846173,-768.11,9.041e-05,2]
[356270248,1742173846183,-1337.49,9.041e-05,2]
[356270250,1742173846193,-6403.72,9.041e-05,2]
[356270252,1742173846203,-500.0,9.041e-05,2]
[356270254,1742173846212,-500.0,9.041e-05,2]
[356270256,1742173846222,-500.0,9.041e-05,2]
[356270258,1742173846231,-500.0,9.041e-05,2]
[356270260,1742173846241,-500.0,9.041e-05,2]
[356270262,1742173846250,-500.0,9.041e-05,2]
[356270264,1742173846259,-500.0,9.041e-05,2]
[356270266,1742173846269,-500.0,9.041e-05,2]
[356270268,1742173846279,-500.0,9.041e-05,2]
[356270270,1742173846288,-500.0,9.041e-05,2]
[356270272,1742173846297,-500.0,9.041e-05,2]
[356270274,1742173846311,-500.0,9.041e-05,2]
[356270276,1742173846321,-9889.09,9.041e-05,2]
[356270278,1742173846331,-500.0,9.041e-05,2]
[356270280,1742173846340,-500.0,9.041e-05,2]
[356270282,1742173846349,-500.0,9.041e-05,2]
[356270284,1742173846359,-500.0,9.041e-05,2]
[356270286,1742173846368,-500.0,9.041e-05,2]
[356270288,1742173846378,-500.0,9.041e-05,2]
[356270290,1742173846387,-894.67,9.041e-05,2]
[356270292,1742173846397,-505.27276065,9.041e-05,2]
[356270294,1742173846406,-9066.85,9.041e-05,2]
[356270296,1742173846415,-500.0,9.041e-05,2]
[356270298,1742173846425,-771.31,9.041e-05,2]
[356270300,1742173846439,-500.0,9.041e-05,2]
[356270302,1742173846450,-500.0,9.041e-05,2]
[356270304,1742173846460,-5044.55,9.041e-05,2]
[356270306,1742173846470,-1757.86,9.041e-05,2]
[356270308,1742173846480,-2178.8,9.041e-05,2]
[356270310,1742173846490,-3540.62,9.041e-05,2]
[356270312,1742173846500,-6336.38,9.041e-05,2]
[356270314,1742173846511,-6451.65,9.041e-05,2]
[356270316,1742173846521,-6109.39,9.041e-05,2]
[356270318,1742173846530,-500.0,9.041e-05,2]
[356270320,1742173846539,-500.0,9.041e-05,2]
[356270323,1742173846549,-664.02,9.041e-05,2]
[356270325,1742173846559,-500.0,9.041e-05,2]
[356270327,1742173846569,-500.0,9.041e-05,2]
[356270329,1742173846578,-500.0,9.041e-05,2]
[356270331,1742173846587,-500.0,9.041e-05,2]
[356270333,1742173846597,-500.0,9.041e-05,2]
[356270335,1742173846606,-500.0,9.041e-05,2]
[356270337,1742173846616,-564.98,9.041e-05,2]
[356270339,1742173846625,-2769.94,9.041e-05,2]
[356270341,1742173846635,-500.0,9.041e-05,2]
[356270343,1742173846645,-500.0,9.041e-05,2]
[356270345,1742173846655,-500.0,9.041e-05,2]
[356270347,1742173846664,-500.0,9.041e-05,2]
[356270349,1742173846673,-500.0,9.041e-05,2]
[356270351,1742173846682,-500.0,9.041e-05,2]
[356270353,1742173846692,-500.0,9.041e-05,2]
[356270355,1742173846702,-500.0,9.041e-05,2]
[356270357,1742173846711,-500.0,9.041e-05,2]
[356270359,1742173846720,-500.0,9.041e-05,2]
[356270361,1742173846729,-500.0,9.041e-05,2]
[356270363,1742173846739,-2938.17,9.041e-05,2]
[356270365,1742173846749,-500.0,9.041e-05,2]
[356270367,1742173846759,-500.0,9.041e-05,2]
[356270369,1742173846768,-500.0,9.041e-05,2]
[356270371,1742173846777,-2310.01,9.041e-05,2]
[356270373,1742173846787,-9956.06,9.041e-05,2]
[356270375,1742173846796,-500.0,9.041e-05,2]
[356270377,1742173846806,-500.0,9.041e-05,2]
[356270379,1742173846815,-500.0,9.041e-05,2]
[356270381,1742173846825,-500.0,9.041e-05,2]
[356270383,1742173846835,-500.0,9.041e-05,2]
[356270385,1742173846844,-130537.71,9.041e-05,2]
[356270387,1742173846854,-500.0,9.041e-05,2]
[356270389,1742173846864,-500.0,9.041e-05,2]
[356270391,1742173846874,-500.0,9.041e-05,2]
[356270393,1742173846884,-500.0,9.041e-05,2]
[356270395,1742173846893,-500.0,9.041e-05,2]
[356270398,1742173846904,-500.0,9.041e-05,2]
[356270399,1742173846914,-1312.41,9.041e-05,2]
[356270401,1742173846924,-3950.85,9.041e-05,2]
[356270404,1742173846935,-500.0,9.041e-05,2]
[356270405,1742173846946,-500.0,9.041e-05,2]
[356270407,1742173846956,-944.7,9.041e-05,2]
[356270410,1742173846967,-500.0,9.041e-05,2]
[356270412,1742173846976,-763.98,9.041e-05,2]
[356270413,1742173846987,-796.5986931,9.059e-05,2]
[356270416,1742173846997,-1100.0,9.068e-05,2]
[356270418,1742173847008,-500.0,9.315e-05,2]
[356270420,1742173847018,-500.0,9.315e-05,2]
[356270422,1742173847027,-500.0,9.315e-05,2]
[356270424,1742173847036,-500.0,9.315e-05,2]
[356270425,1742173847046,-500.0,9.315e-05,2]
[356270426,1742173847055,-500.0,9.315e-05,2]
[356270427,1742173847064,-500.0,9.315e-05,2]
[356270428,1742173847073,-500.0,9.315e-05,2]
[356270429,1742173847082,-500.0,9.315e-05,2]
[356270430,1742173847091,-202.22449788,9.315e-05,2]
[356270431,1742173847101,-683.62,9.315e-05,2]
[356270432,1742173847110,-500.0,9.315e-05,2]
[356270433,1742173847119,-500.0,9.315e-05,2]
[356270434,1742173847128,-500.0,9.315e-05,2]
[356270435,1742173847137,-500.0,9.315e-05,2]
[356270436,1742173847146,-500.0,9.315e-05,2]
[356270438,1742173847155,-500.0,9.315e-05,2]
[356270440,1742173847165,-500.0,9.315e-05,2]
[356270442,1742173847174,-500.0,9.315e-05,2]
[356270444,1742173847184,-500.0,9.315e-05,2]
[356270447,1742173847194,-500.0,9.315e-05,2]
[356270449,1742173847204,-500.0,9.315e-05,2]
[356270451,1742173847214,-569.51,9.315e-05,2]
[356270453,1742173847223,-500.0,9.315e-05,2]
[356270454,1742173847232,-500.0,9.315e-05,2]
[356270456,1742173847242,-500.0,9.315e-05,2]
[356270458,1742173847251,-500.0,9.315e-05,2]
[356270460,1742173847260,-500.0,9.315e-05,2]
[356270462,1742173847270,-500.0,9.315e-05,2]
[356270465,1742173847279,-500.0,9.315e-05,2]
[356270467,1742173847288,-500.0,9.315e-05,2]
[356270468,1742173847297,-500.0,9.315e-05,2]
[356270471,1742173847307,-1110.24,9.315e-05,2]
[356270473,1742173847316,-500.0,9.315e-05,2]
[356270474,1742173847325,-500.0,9.315e-05,2]
[356270477,1742173847335,-500.0,9.315e-05,2]
[356270479,1742173847345,-852.46,9.315e-05,2]
[356270481,1742173847354,-500.0,9.315e-05,2]
[356270482,1742173847363,-905.17,9.315e-05,2]
[356270484,1742173847373,-500.0,9.315e-05,2]
[356270486,1742173847382,-500.0,9.315e-05,2]
[356270489,1742173847393,-500.0,9.315e-05,2]
[356270491,1742173847403,-500.0,9.315e-05,2]
[356270492,1742173847412,-862.26,9.315e-05,2]
[356270494,1742173847422,-500.0,9.315e-05,2]
[356270496,1742173847434,-500.0,9.315e-05,2]
[356270498,1742173847445,-500.0,9.315e-05,2]
[356270500,1742173847455,-500.0,9.315e-05,2]
[356270502,1742173847464,-500.0,9.315e-05,2]
[356270505,1742173847474,-500.0,9.315e-05,2]
[356270506,1742173847483,-500.0,9.315e-05,2]
[356270508,1742173847493,-500.0,9.315e-05,2]
[356270511,1742173847502,-500.0,9.315e-05,2]
[356270512,1742173847512,-500.0,9.315e-05,2]
[356270514,1742173847522,-806.75,9.315e-05,2]
[356270516,1742173847531,-1013.27,9.315e-05,2]
[356270519,1742173847541,-645.00000001,9.315e-05,2]
[356270521,1742173847551,-500.0,9.315e-05,2]
[356270523,1742173847561,-500.0,9.315e-05,2]
[356270525,1742173847570,-500.0,9.315e-05,2]
[356270527,1742173847579,-14900.38,9.315e-05,2]
[356270529,1742173847589,-500.0,9.315e-05,2]
[356270531,1742173847598,-500.0,9.315e-05,2]
[356270533,1742173847607,-4434.9,9.315e-05,2]
[356270535,1742173847617,-500.0,9.315e-05,2]
[356270537,1742173847627,-500.0,9.315e-05,2]
[356270538,1742173847636,-2742.95,9.315e-05,2]
[356270540,1742173847646,-768.11,9.315e-05,2]
[356270542,1742173847655,-1337.49,9.315e-05,2]
[356270544,1742173847665,-6403.72,9.315e-05,2]
[356270546,1742173847675,-500.0,9.315e-05,2]
[356270549,1742173847685,-500.0,9.315e-05,2]
[356270551,1742173847696,-500.0,9.315e-05,2]
[356270553,1742173847706,-500.0,9.315e-05,2]
[356270554,1742173847717,-500.0,9.315e-05,2]
[356270557,1742173847726,-500.0,9.315e-05,2]
[356270559,1742173847737,-500.0,9.315e-05,2]
[356270561,1742173847747,-500.0,9.315e-05,2]
[356270563,1742173847756,-500.0,9.315e-05,2]
[356270565,1742173847766,-500.0,9.315e-05,2]
[356270567,1742173847775,-500.0,9.315e-05,2]
[356270569,1742173847784,-334.52,9.315e-05,2]
[356270571,1742173847794,-9889.09,9.315e-05,2]
[356270572,1742173847805,-500.0,9.315e-05,2]
[356270574,1742173847814,-500.0,9.315e-05,2]
[356270575,1742173847824,-500.0,9.315e-05,2]
[356270577,1742173847834,-500.0,9.315e-05,2]
[356270578,1742173847843,-179.77986742,9.315e-05,2]
[356270580,1742173847853,-500.0,9.315e-05,2]
[356270581,1742173847862,-894.67,9.315e-05,2]
[356270583,1742173847872,-9066.85,9.315e-05,2]
[356270584,1742173847882,-500.0,9.315e-05,2]
[356270586,1742173847891,-771.31,9.315e-05,2]
[356270587,1742173847901,-500.0,9.315e-05,2]
[356270589,1742173847912,-500.0,9.315e-05,2]
[356270590,1742173847922,-5044.55,9.315e-05,2]
[356270592,1742173847932,-1757.86,9.315e-05,2]
[356270594,1742173847943,-2178.8,9.315e-05,2]
[356270595,1742173847953,-3540.62,9.315e-05,2]
[356270597,1742173847963,-6336.38,9.315e-05,2]
[356270598,1742173847973,-6451.65,9.315e-05,2]
[356270600,1742173847983,-6109.39,9.315e-05,2]
[356270601,1742173847993,-664.02,9.315e-05,2]
[356270603,1742173848002,-500.0,9.315e-05,2]
[356270604,1742173848012,-500.0,9.315e-05,2]
[356270606,1742173848022,-500.0,9.315e-05,2]
[356270607,1742173848032,-500.0,9.315e-05,2]
[356270609,1742173848042,-500.0,9.315e-05,2]
[356270610,1742173848052,-500.0,9.315e-05,2]
[356270612,1742173848062,-564.98,9.315e-05,2]
[356270614,1742173848071,-2769.94,9.315e-05,2]
[356270615,1742173848082,-500.0,9.315e-05,2]
[356270617,1742173848093,-500.0,9.315e-05,2]
[356270619,1742173848102,-452.95351253,9.315e-05,2]
[356270620,1742173848112,-500.0,9.315e-05,2]
[356270622,1742173848122,-500.0,9.315e-05,2]
[356270623,1742173848132,-500.0,9.315e-05,2]
[356270625,1742173848142,-500.0,9.315e-05,2]
[356270627,1742173848152,-500.0,9.315e-05,2]
[356270628,1742173848162,-2938.17,9.315e-05,2]
[356270630,1742173848172,-500.0,9.315e-05,2]
[356270631,1742173848181,-500.0,9.315e-05,2]
[356270633,1742173848191,-500.0,9.315e-05,2]
[356270635,1742173848204,-2310.01,9.315e-05,2]
[356270637,1742173848215,-9956.06,9.315e-05,2]
[356270638,1742173848225,-500.0,9.315e-05,2]
[356270640,1742173848235,-500.0,9.315e-05,2]
[356270641,1742173848245,-500.0,9.315e-05,2]
[356270643,1742173848255,-500.0,9.315e-05,2]
[356270644,1742173848265,-266.32725884,9.315e-05,2]
[356270646,1742173848275,-13418.85079406,9.315e-05,2]
[356270667,1742173848615,-9315.20961164,9.315e-05,2]
[356270691,1742173849084,-259.8365628,8.219e-05,2]
[356270694,1742173849190,-0.01474873,8.219e-05,2]
[356270718,1742173849408,-139.14868847,8.219e-05,2]
[356270721,1742173849418,-171.31906861,8.219e-05,2]
[356270723,1742173849439,-292.77263585,8.219e-05,2]
[356270725,1742173849451,-1396.4508462,9.315e-05,2]
[356273458,1742173880721,174.89404634,7.918e-05,2]
[356277994,1742174691050,1000.0,8.72e-05,5]
[356277995,1742174770696,1000.0,8.72e-05,5]
[356278012,1742175018677,181.57,0.000139,31]
[356278032,1742175032845,-152.69601212,8.214e-05,2]
[356278033,1742175032855,-500.0,8.218e-05,2]
[356278034,1742175032865,-549.0025751,8.218e-05,2]
[356278035,1742175032877,-4093.37963289,8.219e-05,2]
[356278036,1742175032887,-500.0,8.219e-05,2]
[356278037,1742175032899,-500.0,8.219e-05,2]